bitfinex/quotes_SOLUSD_20250123
["timestamp","ask_amount","ask_price","bid_price","bid_amount"]
[1737596092589,62.1075,255.92,255.85,19.0432968]
[1737596092767,58.2,255.89,255.83,19.0432968]
[1737596093091,58.2,255.89,255.81,23.0232968]
[1737596093276,58.2,255.86,255.79,19.0432968]
[1737596093678,58.2,255.85,255.79,19.0432968]
[1737596094571,58.2,255.84,255.79,19.0432968]
[1737596095284,58.2,255.84,255.81,19.0432968]
[1737596095495,58.2,255.84,255.83,19.0432968]
[1737596096784,58.2,255.84,255.81,19.0432968]
[1737596097582,58.2,255.83,255.81,19.0432968]
[1737596099588,58.2,255.82,255.81,19.0432968]
[1737596100276,58.2,255.81,255.79,19.0432968]
[1737596100471,23.776884,255.8,255.77,19.0432968]
[1737596100884,58.2,255.81,255.77,19.0432968]
[1737596101194,58.2,255.81,255.79,0.063]
[1737596102501,58.2,255.81,255.79,19.1062968]
[1737596103296,58.2,255.81,255.79,331.1062968]
[1737596103610,58.2,255.86,255.79,331.1062968]
[1737596103780,58.2,255.86,255.82,19.0432968]
[1737596106302,23.776884,255.85,255.82,19.0432968]
[1737596106603,141.3,255.82,255.79,0.063]
[1737596106903,23.776884,255.81,255.79,0.063]
[1737596107079,141.3,255.82,255.79,0.063]
[1737596107280,23.776884,255.81,255.79,0.063]
[1737596108999,3.9093,255.8,255.79,0.063]
[1737596110203,27.686184,255.8,255.79,0.063]
[1737596116206,39.60760087,255.8,255.79,0.063]
[1737596116798,39.60760087,255.8,255.79,0.0001]
[1737596117411,62.82210087,255.8,255.79,0.0001]
[1737596118088,51.11210087,255.8,255.79,0.0001]
[1737596118794,5.0,255.74,255.61,11.92141687]
[1737596118994,23.776884,255.68,255.59,11.98441687]
[1737596120324,23.776884,255.66,255.59,11.98441687]
[1737596121015,58.2,255.66,255.65,11.92141687]
[1737596124511,3.9111,255.69,255.65,11.92141687]
[1737596125111,83.1,255.65,255.61,11.92141687]
[1737596125339,83.1,255.65,255.61,31.92141687]
[1737596126112,83.1,255.65,255.59,11.98441687]
[1737596126809,83.1,255.65,255.63,11.92141687]
[1737596127708,83.1,255.64,255.63,11.92141687]
[1737596129023,83.1,255.64,255.63,323.92141687]
[1737596129822,83.1,255.64,255.63,41.92141687]
[1737596131197,83.1,255.64,255.63,11.92141687]
[1737596134002,83.1,255.64,255.61,11.92141687]
[1737596134196,83.1,255.64,255.62,30.0]
[1737596135018,83.1,255.64,255.63,11.92141687]
[1737596136125,83.1,255.64,255.61,11.92141687]
[1737596136298,83.1,255.64,255.6,3.96]
[1737596136494,83.1,255.64,255.59,11.98441687]
[1737596136713,87.0117,255.64,255.59,0.063]
[1737596137119,141.3,255.62,255.59,0.063]
[1737596137317,141.3,255.61,255.59,0.063]
[1737596138020,3.9123,255.6,255.59,0.063]
[1737596138915,141.3,255.61,255.59,0.063]
[1737596139097,141.3,255.61,255.59,11.98441687]
[1737596140716,58.2,255.65,255.62,20.0]
[1737596140896,58.2,255.65,255.64,11.92141687]
[1737596141415,62.1116,255.65,255.62,11.92141687]
[1737596142856,141.3,255.64,255.61,20.0]
[1737596143925,141.3,255.64,255.61,332.0]
[1737596144098,141.3,255.64,255.63,11.92141687]
[1737596147436,141.3,255.64,255.63,323.92141687]
[1737596147937,58.2,255.72,255.66,20.0]
[1737596148111,58.2,255.72,255.68,11.92141687]
[1737596150331,62.1105,255.72,255.68,11.92141687]
[1737596151130,3.9105,255.72,255.65,312.0]
[1737596151945,3.9105,255.72,255.65,3.96]
[1737596152619,23.776884,255.71,255.65,3.96]
[1737596152819,23.776884,255.69,255.65,3.96]
[1737596153019,15.83625804,255.72,255.65,3.96]
[1737596153330,3.9105,255.72,255.65,3.96]
[1737596153848,141.3,255.72,255.65,3.96]
[1737596154733,141.3,255.72,255.68,20.0]
[1737596156251,145.2105,255.72,255.65,3.96]
[1737596157032,141.3,255.71,255.65,3.96]
[1737596157433,145.2108,255.71,255.65,3.96]
[1737596157634,23.776884,255.7,255.61,0.03]
[1737596157852,23.776884,255.68,255.62,3.96]
[1737596159345,23.776884,255.68,255.62,3.99]
[1737596159527,23.776884,255.66,255.62,3.99]
[1737596160443,27.687984,255.68,255.62,3.99]
[1737596160651,27.687984,255.68,255.62,0.03]
[1737596161424,23.776884,255.66,255.62,0.03]
[1737596161624,23.776884,255.63,255.62,0.03]
[1737596162451,27.688784,255.63,255.62,0.03]
[1737596162755,20.0,255.67,255.62,0.03]
[1737596162960,35.70264204,255.66,255.62,0.03]
[1737596163133,11.92575804,255.64,255.62,0.03]
[1737596164039,35.70264204,255.66,255.62,0.03]
[1737596164757,3.9115,255.65,255.62,0.03]
[1737596165961,23.776884,255.63,255.62,0.03]
[1737596166254,141.3,255.64,255.62,0.03]
[1737596168053,58.2,255.67,255.63,30.0]
[1737596168754,58.2,255.67,255.65,312.0]
[1737596169331,83.1,255.68,255.67,20.0]
[1737596170961,83.1,255.68,255.62,1.5469]
[1737596171134,23.776884,255.67,255.62,1.5469]
[1737596171328,23.776884,255.65,255.62,0.03]
[1737596172452,23.776884,255.63,255.62,0.03]
[1737596172651,23.776884,255.63,255.59,0.063]
[1737596172955,35.70264204,255.6,255.59,0.063]
[1737596174447,58.2,255.53,255.43,30.0]
[1737596174754,87.0129,255.56,255.43,33.96]
[1737596174755,81.976884,255.52,255.43,33.96]
[1737596175053,93.90264204,255.52,255.43,30.0]
[1737596175255,93.90264204,255.52,255.43,3.96]
[1737596175429,58.2,255.51,255.43,3.96]
[1737596175848,58.2,255.49,255.38,30.0]
[1737596176037,23.776884,255.46,255.38,30.0]
[1737596176226,23.776884,255.46,255.36,0.03]
[1737596176432,35.70264204,255.46,255.37,3.96]
[1737596176629,81.976884,255.44,255.36,0.03]
[1737596176852,81.976884,255.44,255.36,3.99]
[1737596178249,81.976884,255.44,255.36,0.03]
[1737596178449,58.2,255.44,255.38,20.0]
[1737596178657,58.2,255.44,255.38,50.0]
[1737596178843,58.2,255.44,255.37,4.02]
[1737596179046,23.776884,255.4,255.37,4.02]
[1737596180856,81.976884,255.37,255.36,0.03]
[1737596181948,23.776884,255.37,255.36,0.03]
[1737596183050,15.84105804,255.41,255.36,0.03]
[1737596183051,11.92575804,255.41,255.36,0.03]
[1737596183461,23.776884,255.38,255.36,0.03]
[1737596183644,11.92575804,255.37,255.36,0.03]
[1737596184560,58.2,255.4,255.36,20.03]
[1737596184967,58.2,255.4,255.36,0.03]
[1737596185672,35.70264204,255.39,255.36,0.03]
[1737596186663,23.776884,255.39,255.36,0.03]
[1737596186869,27.692484,255.39,255.36,0.03]
[1737596187557,141.3,255.35,255.33,0.043]
[1737596187763,141.3,255.35,255.2,45.1122]
[1737596187764,23.776884,255.31,255.2,11.6922]
[1737596187981,23.776884,255.31,255.2,1.5677]
[1737596188295,23.776884,255.29,255.2,5.6877]
[1737596188491,141.3,255.26,255.2,5.6877]
[1737596188793,141.3,255.26,255.23,20.0]
[1737596189982,27.694684,255.25,255.2,4.12]
[1737596190179,58.2,255.21,255.1,0.03]
[1737596190388,70.12575804,255.19,255.1,0.03]
[1737596190587,23.776884,255.14,255.1,0.03]
[1737596191096,23.776884,255.12,255.1,0.03]
[1737596191693,27.696684,255.11,255.1,0.03]
[1737596192279,6.0776,255.1,254.91,30.0]
[1737596192583,11.92575804,255.03,254.85,30.0]
[1737596192786,23.776884,254.96,254.85,30.0]
[1737596192982,43.776884,254.96,254.84,4.26]
[1737596193297,11.92575804,254.93,254.79,30.0]
[1737596193601,15.683186,254.95,254.86,30.0]
[1737596194105,15.683186,254.95,254.93,30.0]
[1737596194284,23.11701365,255.03,254.92,4.32]
[1737596194484,23.776884,255.02,254.92,34.32]
[1737596194890,23.776884,255.04,254.92,34.32]
[1737596195201,19.19591365,255.05,254.92,34.32]
[1737596195603,23.776884,255.04,254.92,34.32]
[1737596195800,23.776884,255.04,254.93,26.85]
[1737596196102,23.776884,255.02,254.93,26.85]
[1737596197208,23.776884,255.0,254.93,26.85]
[1737596197508,23.776884,254.98,254.93,26.85]
[1737596197715,23.776884,254.98,254.89,4.4]
[1737596198026,19.19591365,255.04,254.92,30.0]
[1737596198190,23.776884,255.03,254.92,30.0]
[1737596199414,23.776884,255.03,254.95,30.0]
[1737596199908,23.776884,255.03,254.92,30.0]
[1737596200114,27.698084,255.03,254.93,24.38]
[1737596200814,19.19591365,254.99,254.9,31.23]
[1737596201021,23.776884,254.98,254.9,31.23]
[1737596201205,27.698784,254.98,254.9,26.85]
[1737596201831,19.19591365,254.97,254.9,26.85]
[1737596202411,23.776884,254.96,254.9,26.85]
[1737596202624,27.698784,254.98,254.9,26.85]
[1737596202625,23.776884,254.91,254.9,26.85]
[1737596202816,23.776884,254.91,254.84,0.03]
[1737596203234,23.11841365,254.94,254.84,0.03]
[1737596204643,23.776884,254.91,254.84,0.03]
[1737596205219,3.9229,254.91,254.84,0.03]
[1737596205513,19.19591365,254.94,254.84,0.03]
[1737596205939,19.19591365,254.96,254.86,30.0]
[1737596206150,19.19591365,254.98,254.86,30.0]
[1737596206614,58.2,254.99,254.86,30.0]
[1737596207125,58.2,254.99,254.89,30.0]
[1737596207337,58.2,255.01,254.9,4.48]
[1737596207913,23.776884,255.0,254.9,4.48]
[1737596208236,62.1214,255.01,254.9,4.48]
[1737596208817,19.19591365,255.06,254.94,30.0]
[1737596209046,58.2,255.05,254.97,30.0]
[1737596209712,87.0202,255.09,254.97,30.0]
[1737596209907,23.776884,255.05,254.97,30.0]
[1737596210135,58.2,255.08,255.0,30.0]
[1737596210338,23.776884,255.09,255.0,30.0]
[1737596210529,0.063,255.12,255.0,30.0]
[1737596210917,0.063,255.12,254.99,5.0]
[1737596210918,58.2,255.11,255.03,30.0]
[1737596211514,0.063,255.12,255.06,30.0]
[1737596211718,58.2,255.1,255.03,0.5878992]
[1737596211940,58.2,255.04,254.87,5.4272]
[1737596212239,58.2,254.98,254.87,1.5038]
[1737596212442,19.19591365,255.06,254.94,312.0]
[1737596212627,23.776884,255.05,254.94,312.0]
[1737596213016,23.776884,255.07,254.92,50.0]
[1737596213320,58.2,255.06,254.98,20.0]
[1737596213527,23.776884,255.05,254.98,20.0]
[1737596214854,58.2,255.06,254.98,20.0]
[1737596215148,58.2,255.06,254.88,5.12816829]
[1737596215149,58.2,255.06,254.92,30.0]
[1737596215446,77.39591365,255.02,254.93,4.58]
[1737596215943,58.2,255.02,254.94,30.0]
[1737596216745,58.2,255.02,254.97,30.0]
[1737596216936,58.2,255.02,254.94,30.0]
[1737596219342,58.2,255.02,254.97,20.0]
[1737596219547,58.2,255.06,254.98,30.0]
[1737596222252,70.18697359,255.15,255.04,30.0]
[1737596222441,58.2,255.15,255.01,30.0]
[1737596222620,35.76385759,255.14,255.01,30.0]
[1737596223053,35.76385759,255.14,255.04,342.0]
[1737596223239,3.9196,255.13,255.04,342.0]
[1737596223746,23.839884,255.12,255.04,312.0]
[1737596223953,23.839884,255.12,255.04,342.0]
[1737596224462,0.063,255.12,255.07,20.0]
[1737596225457,0.063,255.12,255.07,50.0]
[1737596226249,0.063,255.12,255.1,30.0]
[1737596226473,0.063,255.12,255.1,34.52]
[1737596227369,0.063,255.12,255.11,312.0]
[1737596229235,0.063,255.12,255.11,321.5]
[1737596229440,0.063,255.12,255.11,352.776884]
[1737596230049,18.029974,255.29,255.11,352.776884]
[1737596230050,11.986974,255.29,255.21,30.0]
[1737596230366,15.90397359,255.3,255.21,20.0]
[1737596230951,15.90397359,255.3,255.22,30.0]
[1737596231262,74.10337359,255.34,255.25,50.0]
[1737596231452,74.10337359,255.34,255.25,30.0]
[1737596231769,23.776884,255.33,255.25,30.0]
[1737596231946,74.10337359,255.34,255.25,30.0]
[1737596232567,15.90337359,255.34,255.28,20.0]
[1737596232763,15.90337359,255.34,255.18,30.0]
[1737596232764,11.98697359,255.3,255.18,30.0]
[1737596232956,11.98697359,255.28,255.14,30.0]
[1737596233157,23.776884,255.25,255.15,312.0]
[1737596233367,11.98697359,255.23,255.16,4.58]
[1737596234266,11.98697359,255.23,255.11,31.5093]
[1737596234267,11.98697359,255.19,255.14,4.58]
[1737596234471,11.98697359,255.19,255.09,4.6]
[1737596234675,3.9188,255.18,255.09,4.6]
[1737596234876,11.98697359,255.15,255.09,4.6]
[1737596235567,93.96385759,255.17,255.09,4.6]
[1737596235871,58.2,255.17,255.11,30.0]
[1737596236073,19.16639202,255.2,255.14,20.0]
[1737596236375,81.28449202,255.22,255.14,362.0]
[1737596236778,23.08449202,255.22,255.14,362.0]
[1737596237153,19.16639202,255.29,255.23,30.0]
[1737596237375,58.2,255.3,255.23,30.0]
[1737596237674,25.20939202,255.33,255.23,30.0]
[1737596238057,23.776884,255.32,255.23,30.0]
[1737596238257,19.16639202,255.31,255.23,20.0]
[1737596238991,3.9169,255.3,255.23,20.0]
[1737596240176,3.9169,255.3,255.23,312.0]
[1737596240393,3.9169,255.3,255.23,342.0]
[1737596241868,58.2,255.35,255.23,342.0]
[1737596242070,3.9164,255.34,255.23,30.0]
[1737596242797,42.94327602,255.33,255.23,30.0]
[1737596243183,19.16639202,255.33,255.23,30.0]
[1737596243581,3.9166,255.32,255.23,30.0]
[1737596245078,3.9166,255.32,255.23,342.0]
[1737596245564,3.9166,255.32,255.23,30.0]
[1737596245965,3.9166,255.32,255.26,30.0]
[1737596247170,19.16639202,255.27,255.18,1.5093]
[1737596247473,19.16639202,255.25,255.17,30.0]
[1737596247784,19.16639202,255.25,255.17,20.0]
[1737596248084,19.16639202,255.25,255.16,4.6]
[1737596248583,19.16639202,255.25,255.17,50.0]
[1737596249084,3.9178,255.24,255.17,50.0]
[1737596249459,3.9178,255.24,255.17,30.0]
[1737596249682,19.16639202,255.22,255.13,4.58]
[1737596249892,19.16639202,255.2,255.09,30.0]
[1737596250189,19.16639202,255.2,255.1,4.58]
[1737596250475,19.16639202,255.2,255.12,20.0]
[1737596251694,3.9186,255.19,255.12,20.0]
[1737596252084,3.9186,255.19,255.12,332.0]
[1737596252484,3.9186,255.19,255.12,20.0]
[1737596253469,3.9186,255.19,255.12,20.03]
[1737596255279,19.16639202,255.16,255.12,0.03]
[1737596256380,3.9192,255.15,255.12,0.03]
[1737596256887,81.976884,255.14,255.12,0.03]
[1737596258291,3.9195,255.13,255.12,0.03]
[1737596261502,15.667845,255.17,255.12,0.03]
[1737596261683,3.9187,255.19,255.12,0.03]
[1737596262500,0.063,255.22,255.15,30.0]
[1737596264307,0.063,255.22,255.16,312.0]
[1737596265412,27.758084,255.22,255.16,312.0]
[1737596265578,11.98286989,255.21,255.12,0.03]
[1737596265780,3.9184,255.2,255.14,20.0]
[1737596266308,3.9184,255.2,255.12,0.03]
[1737596268281,70.18286989,255.21,255.12,0.03]
[1737596268282,3.9188,255.18,255.12,0.03]
[1737596269010,23.776884,255.17,255.12,0.03]
[1737596271723,11.98286989,255.15,255.12,0.03]
[1737596272892,23.776884,255.15,255.12,0.03]
[1737596273099,3.9194,255.14,255.12,0.03]
[1737596276511,23.776884,255.13,255.12,0.03]
[1737596279114,3.9194,255.14,255.12,0.03]
[1737596279905,58.2,255.15,255.12,0.03]
[1737596280105,62.1193,255.15,255.12,0.03]
[1737596280816,1.54280411,255.17,255.12,0.03]
[1737596280817,58.263,255.22,255.12,0.03]
[1737596281202,58.263,255.22,255.14,30.0]
[1737596281715,62.1812,255.22,255.14,30.0]
[1737596281918,0.063,255.22,255.14,30.0]
[1737596282502,0.063,255.22,255.14,342.0]
[1737596283208,0.063,255.22,255.14,30.0]
[1737596283807,0.063,255.22,255.2,30.0]
[1737596284605,0.063,255.22,255.15,31.5273]
[1737596286205,0.063,255.22,255.17,312.0]
[1737596286705,3.9812,255.22,255.17,312.0]
[1737596287403,3.9812,255.22,255.15,31.5273]
[1737596288219,3.9812,255.22,255.15,1.5273]
[1737596288422,3.9812,255.22,255.13,4.42]
[1737596288629,23.776884,255.21,255.12,30.03]
[1737596288826,23.776884,255.21,255.12,0.03]
[1737596289134,23.776884,255.21,255.12,4.45]
[1737596289621,23.776884,255.19,255.12,0.03]
[1737596289927,23.776884,255.17,255.12,0.03]
[1737596291611,3.9191,255.16,255.12,0.03]
[1737596292010,23.776884,255.13,255.12,0.03]
[1737596293649,23.776884,255.11,255.01,4.44]
[1737596293815,23.776884,255.09,255.01,4.44]
[1737596294528,23.776884,255.09,255.02,20.0]
[1737596294940,58.2,255.12,255.02,50.0]
[1737596295112,62.1197,255.12,255.02,362.0]
[1737596296637,62.1197,255.12,255.03,4.44]
[1737596296819,3.9197,255.12,255.03,4.44]
[1737596297833,3.92,255.1,255.03,4.44]
[1737596298043,23.776884,255.12,255.03,4.44]
[1737596298737,11.98286989,255.11,254.99,34.42]
[1737596300130,23.776884,255.09,254.99,346.42]
[1737596300442,58.2,255.08,254.99,346.4]
[1737596301856,3.9204,255.07,254.99,346.43]
[1737596302359,3.9204,255.07,254.99,34.43]
[1737596305363,3.9204,255.07,254.99,346.43]
[1737596306162,58.2,255.08,255.03,30.0]
[1737596307042,0.063,255.12,255.08,30.0]
[1737596307637,0.063,255.12,255.11,30.0]
[1737596309144,0.063,255.12,255.11,342.0]
[1737596312170,0.063,255.12,255.08,31.6204]
[1737596312578,0.063,255.12,255.08,1.6204]
[1737596312758,3.9828,255.12,255.08,4.36]
[1737596313062,3.9828,255.12,255.08,24.36]
[1737596313473,3.9828,255.12,255.08,4.36]
[1737596313845,23.776884,255.11,255.08,4.36]
[1737596314559,3.92,255.1,255.08,4.36]
[1737596317658,3.92,255.1,255.03,312.03]
[1737596317850,3.92,255.1,255.03,316.37]
[1737596318071,3.92,255.1,255.03,4.37]
[1737596321080,3.92,255.1,255.03,316.37]
[1737596321569,3.92,255.1,255.03,4.37]
[1737596321954,0.063,255.12,255.05,30.0]
[1737596322175,0.063,255.12,255.08,50.0]
[1737596322480,0.063,255.12,255.11,30.0]
[1737596324595,0.063,255.12,255.11,342.0]
[1737596325265,0.063,255.12,255.11,30.0]
[1737596325482,0.063,255.12,255.11,30.58775495]
[1737596327471,0.063,255.12,255.11,55.97503895]
[1737596328388,0.063,255.12,255.11,367.97503895]
[1737596328590,0.063,255.12,255.11,367.387284]
[1737596328786,0.063,255.12,255.11,343.6104]
[1737596329302,0.063,255.12,255.11,30.0]
[1737596329501,0.063,255.12,255.08,30.0]
[1737596329675,0.063,255.12,255.11,30.0]
[1737596329871,0.063,255.12,255.05,31.6104]
[1737596330176,0.063,255.12,255.09,30.0]
[1737596331085,3.9828,255.12,255.08,20.0]
[1737596331280,3.9828,255.12,255.08,24.26]
[1737596331504,3.9828,255.12,255.05,30.0]
[1737596331702,3.9828,255.12,255.06,4.26]
[1737596332211,3.9828,255.12,255.06,316.26]
[1737596332414,11.98286989,255.11,255.03,4.29]
[1737596332915,3.9828,255.12,255.03,4.29]
[1737596333101,11.98286989,255.11,255.03,0.03]
[1737596333402,3.92,255.1,255.05,20.0]
[1737596335002,3.9827,255.12,255.05,20.0]
[1737596335502,3.9827,255.12,255.05,362.0]
[1737596336409,3.9827,255.12,255.06,4.26]
[1737596337816,11.98286989,255.1,255.03,0.03]
[1737596338007,11.98286989,255.06,254.99,0.03]
[1737596338220,23.776884,255.03,254.99,0.03]
[1737596338514,11.98286989,255.02,254.99,0.03]
[1737596338722,58.2,255.01,254.99,0.03]
[1737596341010,62.1214,255.01,254.99,0.03]
[1737596343405,35.75975389,255.0,254.99,0.03]
[1737596344909,15.90406989,255.03,254.99,0.03]
[1737596345628,39.68095389,255.03,254.99,0.03]
[1737596347029,15.90436989,255.01,254.99,0.03]
[1737596348727,0.063,255.12,255.1,30.0]
[1737596348910,0.063,255.12,255.07,4.26]
[1737596349325,12.04586989,255.12,255.07,4.26]
[1737596349822,0.063,255.12,255.07,4.26]
[1737596350831,0.063,255.12,255.09,30.0]
[1737596351033,0.063,255.12,255.11,20.0]
[1737596351536,0.063,255.12,255.09,20.0]
[1737596351716,0.063,255.12,255.09,332.0]
[1737596352219,0.063,255.12,255.09,312.0]
[1737596352932,0.063,255.12,255.07,4.26]
[1737596353229,3.9828,255.12,255.07,4.26]
[1737596353931,11.98286989,255.11,255.04,4.34]
[1737596355040,3.92,255.1,255.04,4.34]
[1737596355217,3.9827,255.12,255.04,4.34]
[1737596355628,3.9827,255.12,255.06,30.0]
[1737596355629,0.063,255.12,255.06,30.0]
[1737596355941,0.063,255.12,255.07,312.0]
[1737596356244,3.9828,255.12,255.04,4.34]
[1737596356532,81.976884,255.04,254.99,0.03]
[1737596356744,81.976884,255.04,254.85,0.61798297]
[1737596356745,23.776884,254.99,254.86,1.5684]
[1737596357033,6.6318,255.02,254.86,0.03]
[1737596357034,23.776884,254.92,254.86,0.03]
[1737596359935,11.98286989,254.88,254.86,0.03]
[1737596360836,11.98286989,254.9,254.86,0.03]
[1737596361025,35.75975389,254.92,254.86,0.03]
[1737596361229,3.9229,254.91,254.86,0.03]
[1737596361941,11.98286989,254.92,254.86,0.03]
[1737596362635,15.90566989,254.92,254.86,0.03]
[1737596363941,11.98286989,254.96,254.87,30.0]
[1737596364236,11.98286989,254.98,254.91,30.0]
[1737596364834,11.98286989,254.94,254.88,20.0]
[1737596365131,11.98286989,254.96,254.89,30.0]
[1737596365828,11.98286989,254.96,254.89,20.0]
[1737596366033,13.7249,255.01,254.86,30.03]
[1737596366034,11.98286989,254.94,254.87,4.48]
[1737596366436,11.98286989,254.92,254.87,4.48]
[1737596366636,11.98286989,254.9,254.87,4.48]
[1737596367017,11.98286989,254.88,254.87,4.48]
[1737596367538,11.98286989,254.88,254.86,0.03]
[1737596367743,19.21275156,254.87,254.86,0.03]
[1737596367925,42.98963556,254.87,254.86,0.03]
[1737596368118,46.91313556,254.87,254.86,0.03]
[1737596370247,3.9235,254.87,254.86,0.03]
[1737596371856,19.21275156,254.9,254.86,0.03]
[1737596372136,3.9232,254.89,254.86,0.03]
[1737596372342,42.98963556,254.88,254.86,0.03]
[1737596372520,23.776884,254.86,254.85,0.0001]
[1737596372719,23.776884,254.81,254.73,0.03]
[1737596372937,23.776884,254.85,254.73,0.03]
[1737596372938,42.98963556,254.74,254.73,0.03]
[1737596373446,42.98963556,254.74,254.73,0.0001]
[1737596374021,46.91513556,254.74,254.73,0.0001]
[1737596374245,53.20643556,254.74,254.73,0.0001]
[1737596374545,23.776884,254.69,254.6,0.03]
[1737596374742,19.21275156,254.62,254.6,0.03]
[1737596374934,19.21275156,254.72,254.64,30.0]
[1737596375134,19.21275156,254.74,254.67,30.0]
[1737596375449,3.9253,254.76,254.67,30.0]
[1737596375650,3.9253,254.76,254.64,30.0]
[1737596375853,42.98963556,254.75,254.64,30.0]
[1737596376057,3.9255,254.74,254.64,30.0]
[1737596376349,19.21275156,254.73,254.64,30.0]
[1737596376734,19.21275156,254.71,254.64,30.0]
[1737596377145,19.21275156,254.73,254.64,30.0]
[1737596377751,19.21275156,254.71,254.64,30.0]
[1737596378248,23.776884,254.7,254.62,1.615]
[1737596378448,23.776884,254.7,254.6,6.1235]
[1737596378449,23.776884,254.67,254.6,0.03]
[1737596378629,42.98963556,254.61,254.6,0.03]
[1737596379029,19.21275156,254.63,254.6,0.03]
[1737596379247,19.21275156,254.61,254.6,0.03]
[1737596380047,19.21275156,254.63,254.6,0.03]
[1737596380242,19.21275156,254.71,254.62,30.0]
[1737596380560,19.21275156,254.73,254.63,4.64]
[1737596381245,19.21275156,254.71,254.63,4.64]
[1737596381446,19.21275156,254.71,254.6,0.03]
[1737596381633,19.21275156,254.71,254.61,4.68]
[1737596381832,19.21275156,254.73,254.62,30.0]
[1737596382065,19.21275156,254.77,254.66,30.0]
[1737596382247,3.9255,254.75,254.63,30.0]
[1737596382842,23.13825156,254.75,254.63,30.0]
[1737596383555,19.21275156,254.72,254.63,30.0]
[1737596383759,19.21275156,254.7,254.63,4.68]
[1737596384652,3.9263,254.69,254.63,4.68]
[1737596384856,19.21275156,254.68,254.63,4.68]
[1737596385040,19.21275156,254.7,254.63,4.68]
[1737596386160,23.776884,254.69,254.63,4.68]
[1737596386454,19.21275156,254.66,254.6,0.03]
[1737596386665,23.13965156,254.66,254.6,0.03]
[1737596386958,19.21275156,254.63,254.6,0.03]
[1737596387553,19.21275156,254.61,254.6,0.03]
[1737596387743,19.21275156,254.63,254.6,0.03]
[1737596387943,19.21275156,254.65,254.6,0.03]
[1737596388345,19.21275156,254.63,254.6,0.03]
[1737596389143,19.21275156,254.61,254.6,0.03]
[1737596389343,42.98963556,254.61,254.6,0.03]
[1737596390068,19.21275156,254.61,254.6,0.03]
[1737596391367,19.21275156,254.63,254.6,0.03]
[1737596392472,23.776884,254.6,254.43,1.615]
[1737596392775,19.21275156,254.54,254.43,1.615]
[1737596393268,19.21275156,254.5,254.37,0.03]
[1737596394398,23.776884,254.49,254.37,0.03]
[1737596394551,19.21275156,254.5,254.37,0.03]
[1737596394552,23.776884,254.47,254.37,4.75]
[1737596394751,19.21275156,254.5,254.39,30.0]
[1737596395156,19.21275156,254.59,254.5,30.0]
[1737596395354,23.13985156,254.64,254.5,30.0]
[1737596395666,23.776884,254.63,254.5,30.0]
[1737596395878,23.776884,254.63,254.4,5.0]